fUST/lending_fUST_20250604
["ID","MTS","AMOUNT","RATE_DAILY","PERIOD"]
[364088134,1748994636035,-440.0,0.00016712,2]
[364088135,1748994636046,-440.0,0.00016712,2]
[364088136,1748994636055,-440.0,0.00016712,2]
[364088137,1748994636065,-440.0,0.00016712,2]
[364088138,1748994636075,-450.06092932,0.00016712,2]
[364088139,1748994636084,-440.0,0.00016712,2]
[364088140,1748994636094,-440.0,0.00016712,2]
[364088141,1748994636103,-440.0,0.00016712,2]
[364088142,1748994636113,-440.0,0.00016712,2]
[364088143,1748994636123,-440.0,0.00016712,2]
[364088144,1748994636133,-440.0,0.00016712,2]
[364088145,1748994636143,-440.0,0.00016712,2]
[364088146,1748994636152,-440.0,0.00016712,2]
[364088147,1748994636162,-440.0,0.00016712,2]
[364088148,1748994636172,-440.0,0.00016712,2]
[364088149,1748994636181,-440.0,0.00016712,2]
[364088150,1748994636191,-390.0,0.00016712,2]
[364088151,1748994636200,-440.0,0.00016712,2]
[364088152,1748994636211,-440.0,0.00016712,2]
[364088153,1748994636220,-589.44,0.00016712,2]
[364088154,1748994636230,-440.0,0.00016712,2]
[364088155,1748994636239,-430.0,0.00016712,2]
[364088156,1748994636249,-440.0,0.00016712,2]
[364088157,1748994636259,-440.0,0.00016712,2]
[364088158,1748994636268,-462.41655475,0.00016712,2]
[364088159,1748994636278,-440.0,0.00016712,2]
[364088160,1748994636288,-440.0,0.00016712,2]
[364088161,1748994636298,-332.62714514,0.00016712,2]
[364088162,1748994636307,-440.0,0.00016712,2]
[364088163,1748994636317,-440.0,0.00016712,2]
[364088164,1748994636326,-440.0,0.00016712,2]
[364088165,1748994636336,-410.0,0.00016712,2]
[364088166,1748994636345,-440.0,0.00016712,2]
[364088167,1748994636355,-440.0,0.00016712,2]
[364088168,1748994636364,-440.0,0.00016712,2]
[364088169,1748994636374,-440.0,0.00016712,2]
[364088170,1748994636383,-440.0,0.00016712,2]
[364088171,1748994636393,-440.0,0.00016712,2]
[364088172,1748994636402,-440.0,0.00016712,2]
[364088173,1748994636412,-678.59,0.00016712,2]
[364088174,1748994636421,-440.0,0.00016712,2]
[364088175,1748994636430,-440.0,0.00016712,2]
[364088176,1748994636439,-440.0,0.00016712,2]
[364088177,1748994636449,-984.2,0.00016712,2]
[364088178,1748994636459,-440.0,0.00016712,2]
[364088179,1748994636468,-440.0,0.00016712,2]
[364088180,1748994636477,-440.0,0.00016712,2]
[364088181,1748994636486,-410.0,0.00016712,2]
[364088182,1748994636496,-464.16363501,0.00016712,2]
[364088183,1748994636505,-440.0,0.00016712,2]
[364088184,1748994636515,-283.25438835,0.00016712,2]
[364088185,1748994636524,-583.2,0.00016712,2]
[364088186,1748994636534,-307.72,0.00016712,2]
[364088187,1748994636543,-579.4,0.00016712,2]
[364088188,1748994636553,-440.0,0.00016712,2]
[364088189,1748994636563,-440.0,0.00016712,2]
[364088190,1748994636573,-3450.69833272,0.000169,2]
[364088191,1748994636586,-440.0,0.00016986,2]
[364088192,1748994636596,-440.0,0.00016986,2]
[364088193,1748994636606,-440.0,0.00016986,2]
[364088194,1748994636615,-262.54,0.00016986,2]
[364088195,1748994636627,-440.0,0.00016986,2]
[364088196,1748994636637,-440.0,0.00016986,2]
[364088197,1748994636647,-440.0,0.00016986,2]
[364088198,1748994636658,-440.0,0.00016986,2]
[364088199,1748994636668,-440.0,0.00016986,2]
[364088200,1748994636678,-410.0,0.00016986,2]
[364088201,1748994636688,-613.26,0.00016986,2]
[364088202,1748994636697,-440.0,0.00016986,2]
[364088203,1748994636707,-227.37290623,0.00016986,2]
[364088204,1748994636717,-626.89,0.00016986,2]
[364088205,1748994636727,-440.0,0.00016986,2]
[364088206,1748994636737,-986.53,0.00016986,2]
[364088207,1748994636747,-440.0,0.00016986,2]
[364088208,1748994636757,-440.0,0.00016986,2]
[364088209,1748994636767,-440.0,0.00016986,2]
[364088210,1748994636777,-990.65,0.00016986,2]
[364088211,1748994636787,-440.0,0.00016986,2]
[364088212,1748994636799,-440.0,0.00016986,2]
[364088213,1748994636808,-440.0,0.00016986,2]
[364088214,1748994636819,-440.0,0.00016986,2]
[364088215,1748994636829,-440.0,0.00016986,2]
[364088216,1748994636839,-420.0,0.00016986,2]
[364088217,1748994636848,-440.0,0.00016986,2]
[364088218,1748994636858,-440.0,0.00016986,2]
[364088219,1748994636868,-440.0,0.00016986,2]
[364088220,1748994636877,-440.0,0.00016986,2]
[364088221,1748994636887,-440.0,0.00016986,2]
[364088222,1748994636898,-589.44,0.00016986,2]
[364088223,1748994636907,-440.0,0.00016986,2]
[364088224,1748994636917,-440.0,0.00016986,2]
[364088225,1748994636927,-440.0,0.00016986,2]
[364088226,1748994636937,-310.80096579,0.00016986,2]
[364088227,1748994636947,-440.0,0.00016986,2]
[364088228,1748994636956,-440.0,0.00016986,2]
[364088229,1748994636966,-440.0,0.00016986,2]
[364088230,1748994636975,-440.0,0.00016986,2]
[364088231,1748994636985,-430.0,0.00016986,2]
[364088232,1748994636995,-440.0,0.00016986,2]
[364088233,1748994637004,-440.0,0.00016986,2]
[364088234,1748994637014,-238.8,0.00016986,2]
[364088235,1748994637024,-678.59,0.00016986,2]
[364088236,1748994637033,-440.0,0.00016986,2]
[364088237,1748994637043,-984.2,0.00016986,2]
[364088238,1748994637054,-440.0,0.00016986,2]
[364088239,1748994637064,-440.0,0.00016986,2]
[364088240,1748994637073,-440.0,0.00016986,2]
[364088241,1748994637083,-583.2,0.00016986,2]
[364088242,1748994637093,-579.4,0.00016986,2]
[364088243,1748994637102,-440.0,0.00016986,2]
[364088244,1748994637112,-440.0,0.00016986,2]
[364088245,1748994637122,-500.0,0.00017088,2]
[364088246,1748994637132,-3450.69833267,0.00017176,2]
[364088247,1748994637141,-440.0,0.0001726,2]
[364088248,1748994637151,-440.0,0.0001726,2]
[364088249,1748994637160,-440.0,0.0001726,2]
[364088250,1748994637169,-440.0,0.0001726,2]
[364088251,1748994637178,-440.0,0.0001726,2]
[364088252,1748994637188,-440.0,0.0001726,2]
[364088253,1748994637197,-410.0,0.0001726,2]
[364088254,1748994637207,-440.0,0.0001726,2]
[364088255,1748994637216,-613.26,0.0001726,2]
[364088256,1748994637226,-440.0,0.0001726,2]
[364088257,1748994637235,-626.89,0.0001726,2]
[364088258,1748994637244,-440.0,0.0001726,2]
[364088259,1748994637254,-986.53,0.0001726,2]
[364088260,1748994637263,-440.0,0.0001726,2]
[364088261,1748994637272,-440.0,0.0001726,2]
[364088262,1748994637282,-990.65,0.0001726,2]
[364088263,1748994637291,-440.0,0.0001726,2]
[364088264,1748994637302,-440.0,0.0001726,2]
[364088265,1748994637312,-440.0,0.0001726,2]
[364088266,1748994637322,-410.0,0.0001726,2]
[364088267,1748994637331,-440.0,0.0001726,2]
[364088268,1748994637341,-440.0,0.0001726,2]
[364088269,1748994637351,-440.0,0.0001726,2]
[364088270,1748994637361,-410.0,0.0001726,2]
[364088271,1748994637371,-440.0,0.0001726,2]
[364088272,1748994637380,-440.0,0.0001726,2]
[364088273,1748994637389,-589.44,0.0001726,2]
[364088274,1748994637399,-440.0,0.0001726,2]
[364088276,1748994637408,-410.0,0.0001726,2]
[364088278,1748994637418,-238.15,0.0001726,2]
[364088279,1748994637427,-410.0,0.0001726,2]
[364088280,1748994637437,-440.0,0.0001726,2]
[364088282,1748994637452,-587.82102879,0.0001726,2]
[364088284,1748994637467,-440.0,0.0001726,2]
[364088286,1748994637477,-125.21645238,0.0001726,2]
[364088294,1748994638169,-440.0,0.00016438,2]
[364088295,1748994638179,-60.0,0.00016438,2]
[364088296,1748994638192,-380.0,0.00016438,2]
[364088297,1748994638203,-440.0,0.00016712,2]
[364088298,1748994638215,-440.0,0.00016712,2]
[364088299,1748994638225,-440.0,0.00016986,2]
[364088300,1748994638235,-314.78354762,0.0001726,2]
[364088301,1748994638245,-678.59,0.0001726,2]
[364088302,1748994638255,-410.0,0.0001726,2]
[364088303,1748994638267,-984.2,0.0001726,2]
[364088304,1748994638278,-523.58,0.0001726,2]
[364088305,1748994638288,-440.0,0.0001726,2]
[364088306,1748994638301,-410.0,0.0001726,2]
[364088307,1748994638311,-583.2,0.0001726,2]
[364088308,1748994638320,-579.4,0.0001726,2]
[364088309,1748994638330,-440.0,0.0001726,2]
[364088310,1748994638340,-440.0,0.0001726,2]
[364088311,1748994638350,-440.0,0.0001726,2]
[364088312,1748994638359,-500.0,0.00017526,2]
[364088313,1748994638368,-400.0,0.00017534,2]
[364088314,1748994638377,-400.0,0.00017534,2]
[364088315,1748994638387,-278.26370256,0.00017534,2]
[364088316,1748994638398,-440.0,0.00017534,2]
[364088317,1748994638407,-440.0,0.00017534,2]
[364088318,1748994638416,-440.0,0.00017534,2]
[364088319,1748994638426,-613.26,0.00017534,2]
[364088320,1748994638435,-440.0,0.00017534,2]
[364088321,1748994638444,-626.89,0.00017534,2]
[364088322,1748994638453,-440.0,0.00017534,2]
[364088323,1748994638464,-440.0,0.00017534,2]
[364088324,1748994638474,-440.0,0.00017534,2]
[364088325,1748994638484,-990.65,0.00017534,2]
[364088326,1748994638494,-400.0,0.00017534,2]
[364088327,1748994638503,-440.0,0.00017534,2]
[364088328,1748994638513,-440.0,0.00017534,2]
[364088329,1748994638523,-440.0,0.00017534,2]
[364088330,1748994638532,-440.0,0.00017534,2]
[364088331,1748994638541,-410.0,0.00017534,2]
[364088332,1748994638551,-440.0,0.00017534,2]
[364088333,1748994638560,-589.44,0.00017534,2]
[364088334,1748994638570,-440.0,0.00017534,2]
[364088335,1748994638582,-440.0,0.00017534,2]
[364088336,1748994638592,-440.0,0.00017534,2]
[364088337,1748994638602,-440.0,0.00017534,2]
[364088338,1748994638611,-678.59,0.00017534,2]
[364088339,1748994638622,-984.2,0.00017534,2]
[364088340,1748994638631,-440.0,0.00017534,2]
[364088341,1748994638641,-583.2,0.00017534,2]
[364088342,1748994638650,-579.4,0.00017534,2]
[364088343,1748994638661,-440.0,0.00017534,2]
[364088344,1748994638671,-400.0,0.00017534,2]
[364088345,1748994638680,-440.0,0.00017534,2]
[364088346,1748994638690,-500.0,0.00017616,2]
[364088347,1748994638700,-500.0,0.00017616,2]
[364088348,1748994638709,-154.4265296,0.00017626,2]
[364088349,1748994638719,-500.0,0.00017693,2]
[364088350,1748994638729,-500.0,0.00017693,2]
[364088351,1748994638738,-3620.17415937,0.00017708,2]
[364088352,1748994638749,-595.95659499,0.00017731,2]
[364088353,1748994638758,-500.0,0.00017731,2]
[364088354,1748994638768,-501.16490734,0.00017775,2]
[364088355,1748994638778,-217.01,0.00017808,2]
[364088356,1748994638787,-440.0,0.00017808,2]
[364088357,1748994638797,-613.26,0.00017808,2]
[364088358,1748994638808,-440.0,0.00017808,2]
[364088359,1748994638818,-626.89,0.00017808,2]
[364088360,1748994638827,-440.0,0.00017808,2]
[364088361,1748994638837,-440.0,0.00017808,2]
[364088362,1748994638847,-440.0,0.00017808,2]
[364088363,1748994638857,-990.65,0.00017808,2]
[364088364,1748994638866,-152.22,0.00017808,2]
[364088365,1748994638875,-440.0,0.00017808,2]
[364088366,1748994638885,-440.0,0.00017808,2]
[364088367,1748994638895,-440.0,0.00017808,2]
[364088368,1748994638906,-440.0,0.00017808,2]
[364088369,1748994638916,-589.44,0.00017808,2]
[364088370,1748994638926,-527.67101958,0.00017808,2]
[364088371,1748994638937,-440.0,0.00017808,2]
[364088372,1748994638947,-440.0,0.00017808,2]
[364088373,1748994638956,-440.0,0.00017808,2]
[364088374,1748994638966,-678.59,0.00017808,2]
[364088375,1748994638976,-984.2,0.00017808,2]
[364088376,1748994638986,-440.0,0.00017808,2]
[364088377,1748994638996,-583.2,0.00017808,2]
[364088378,1748994639006,-579.4,0.00017808,2]
[364088379,1748994639016,-491.75,0.00017808,2]
[364088380,1748994639026,-440.0,0.00017808,2]
[364088381,1748994639036,-420.0,0.00017963,2]
[364088382,1748994639047,-420.0,0.00017963,2]
[364088383,1748994639057,-1680.0,0.00018052,2]
[364088384,1748994639067,-440.0,0.00018082,2]
[364088385,1748994639076,-613.26,0.00018082,2]
[364088386,1748994639087,-440.0,0.00018082,2]
[364088387,1748994639096,-626.89,0.00018082,2]
[364088388,1748994639106,-440.0,0.00018082,2]
[364088389,1748994639116,-440.0,0.00018082,2]
[364088390,1748994639125,-440.0,0.00018082,2]
[364088391,1748994639136,-990.65,0.00018082,2]
[364088392,1748994639146,-440.0,0.00018082,2]
[364088393,1748994639156,-440.0,0.00018082,2]
[364088394,1748994639167,-286.61,0.00018082,2]
[364088395,1748994639180,-554.6,0.00018082,2]
[364088396,1748994639191,-589.44,0.00018082,2]
[364088397,1748994639201,-515.62,0.00018082,2]
[364088398,1748994639211,-440.0,0.00018082,2]
[364088399,1748994639221,-207.34739652,0.00018082,2]
[364088400,1748994639231,-678.59,0.00018082,2]
[364088401,1748994639241,-984.2,0.00018082,2]
[364088402,1748994639250,-554.78,0.00018082,2]
[364088403,1748994639259,-583.2,0.00018082,2]
[364088404,1748994639268,-579.4,0.00018082,2]
[364088405,1748994639288,-440.0,0.00018082,2]
[364088407,1748994639299,-500.0,0.00018164,2]
[364088408,1748994639309,-440.0,0.00018356,2]
[364088409,1748994639319,-613.26,0.00018356,2]
[364088410,1748994639330,-440.0,0.00018356,2]
[364088411,1748994639340,-626.89,0.00018356,2]
[364088412,1748994639350,-440.0,0.00018356,2]
[364088413,1748994639362,-440.0,0.00018356,2]
[364088414,1748994639372,-440.0,0.00018356,2]
[364088415,1748994639383,-990.65,0.00018356,2]
[364088417,1748994639393,-440.0,0.00018356,2]
[364088419,1748994639403,-440.0,0.00018356,2]
[364088420,1748994639413,-589.44,0.00018356,2]
[364088421,1748994639423,-440.0,0.00018356,2]
[364088422,1748994639432,-678.59,0.00018356,2]
[364088423,1748994639442,-984.2,0.00018356,2]
[364088424,1748994639452,-583.2,0.00018356,2]
[364088425,1748994639462,-579.4,0.00018356,2]
[364088426,1748994639471,-440.0,0.00018356,2]
[364088427,1748994639482,-440.0,0.0001863,2]
[364088428,1748994639492,-613.26,0.0001863,2]
[364088430,1748994639501,-440.0,0.0001863,2]
[364088431,1748994639511,-626.89,0.0001863,2]
[364088432,1748994639520,-440.0,0.0001863,2]
[364088433,1748994639531,-440.0,0.0001863,2]
[364088434,1748994639541,-570.76,0.0001863,2]
[364088435,1748994639553,-990.65,0.0001863,2]
[364088436,1748994639562,-440.0,0.0001863,2]
[364088437,1748994639572,-440.0,0.0001863,2]
[364088438,1748994639586,-589.44,0.0001863,2]
[364088439,1748994639596,-440.0,0.0001863,2]
[364088440,1748994639606,-678.59,0.0001863,2]
[364088441,1748994639617,-984.2,0.0001863,2]
[364088442,1748994639627,-583.2,0.0001863,2]
[364088443,1748994639638,-579.4,0.0001863,2]
[364088444,1748994639648,-440.0,0.0001863,2]
[364088445,1748994639658,-160.0,0.00018868,2]
[364088446,1748994639670,-423.63107087,0.00018868,2]
[364088447,1748994639680,-842.5625,0.00018868,2]
[364088448,1748994639690,-12670.76136593,0.00018868,2]
[364088450,1748994639700,-160.0,0.00018868,2]
[364088451,1748994639710,-160.0,0.00018868,2]
[364088452,1748994639719,-212.86879254,0.00018868,2]
[364088453,1748994639729,-229.42821335,0.00018868,2]
[364088454,1748994639739,-875.10707019,0.000189,2]
[364088455,1748994639750,-440.0,0.00018904,2]
[364088457,1748994639761,-613.26,0.00018904,2]
[364088459,1748994639771,-440.0,0.00018904,2]
[364088461,1748994639781,-626.89,0.00018904,2]
[364088463,1748994639791,-190.94,0.00018904,2]
[364088465,1748994639801,-440.0,0.00018904,2]
[364088468,1748994639811,-990.65,0.00018904,2]
[364088471,1748994639821,-440.0,0.00018904,2]
[364088473,1748994639832,-440.0,0.00018904,2]
[364088475,1748994639842,-589.44,0.00018904,2]
[364088477,1748994639853,-440.0,0.00018904,2]
[364088479,1748994639863,-678.59,0.00018904,2]
[364088481,1748994639873,-984.2,0.00018904,2]
[364088483,1748994639883,-583.2,0.00018904,2]
[364088485,1748994639893,-579.4,0.00018904,2]
[364088487,1748994639903,-440.0,0.00018904,2]
[364088489,1748994639912,-154.4265296,0.00018914,2]
[364088491,1748994639922,-440.0,0.00019178,2]
[364088493,1748994639932,-395.64359466,0.00019178,2]
[364088496,1748994639942,-613.26,0.00019178,2]
[364088498,1748994639951,-440.0,0.00019178,2]
[364088500,1748994639962,-626.89,0.00019178,2]
[364088501,1748994639972,-440.0,0.00019178,2]
[364088502,1748994639981,-990.65,0.00019178,2]
[364088503,1748994639991,-440.0,0.00019178,2]
[364088504,1748994640000,-440.0,0.00019178,2]
[364088505,1748994640009,-589.44,0.00019178,2]
[364088506,1748994640019,-440.0,0.00019178,2]
[364088507,1748994640029,-678.59,0.00019178,2]
[364088508,1748994640038,-984.2,0.00019178,2]
[364088509,1748994640048,-583.2,0.00019178,2]
[364088510,1748994640058,-579.4,0.00019178,2]
[364088511,1748994640068,-473.36,0.00019178,2]
[364088512,1748994640080,-151.0,0.00019178,2]
[364088513,1748994640089,-181.684091,0.00019178,2]
[364088514,1748994640099,-3620.17415935,0.00019206,2]
[364088515,1748994640108,-156.587,0.00019233,2]
[364088516,1748994640117,-162.380719,0.00019288,2]
[364088517,1748994640127,-168.3888056,0.00019343,2]
[364088518,1748994640136,-174.61919141,0.00019398,2]
[364088519,1748994640145,-151.0,0.000194,2]
[364088520,1748994640154,-529.65,0.00019452,2]
[364088521,1748994640164,-613.26,0.00019452,2]
[364088522,1748994640173,-440.0,0.00019452,2]
[364088523,1748994640183,-626.89,0.00019452,2]
[364088524,1748994640193,-280.58,0.00019452,2]
[364088525,1748994640203,-990.65,0.00019452,2]
[364088526,1748994640212,-440.0,0.00019452,2]
[364088527,1748994640221,-440.0,0.00019452,2]
[364088528,1748994640231,-589.44,0.00019452,2]
[364088529,1748994640240,-440.0,0.00019452,2]
[364088531,1748994640250,-678.59,0.00019452,2]
[364088532,1748994640260,-984.2,0.00019452,2]
[364088533,1748994640270,-583.2,0.00019452,2]
[364088534,1748994640280,-579.4,0.00019452,2]
[364088536,1748994640290,-181.08010149,0.00019453,2]
[364088538,1748994640300,-187.78006525,0.00019508,2]
[364088540,1748994640310,-194.72792766,0.00019563,2]
[364088542,1748994640320,-201.93286099,0.00019618,2]
[364088544,1748994640329,-587.0,0.00019631,2]
[364088546,1748994640339,-209.40437684,0.00019673,2]
[364088548,1748994640350,-613.26,0.00019726,2]
[364088551,1748994640361,-440.0,0.00019726,2]
[364088553,1748994640371,-626.89,0.00019726,2]
[364088555,1748994640381,-990.65,0.00019726,2]
[364088557,1748994640391,-440.0,0.00019726,2]
[364088559,1748994640402,-320.65,0.00019726,2]
[364088561,1748994640412,-589.44,0.00019726,2]
[364088563,1748994640422,-440.0,0.00019726,2]
[364088565,1748994640432,-678.59,0.00019726,2]
[364088567,1748994640442,-984.2,0.00019726,2]
[364088569,1748994640452,-583.2,0.00019726,2]
[364088571,1748994640461,-579.4,0.00019726,2]
[364088573,1748994640470,-217.15233878,0.00019728,2]
[364088575,1748994640480,-174.99223661,0.00019783,2]
[364088577,1748994640490,-156.005,0.000198,2]
[364088579,1748994640500,-2351.0,0.00019827,2]
[364088581,1748994640510,-242.99262108,0.0002,2]
[364088583,1748994640519,-613.26,0.0002,2]
[364088585,1748994640529,-440.0,0.0002,2]
[364088587,1748994640539,-193.30573625,0.0002,2]
[364088589,1748994640550,-626.89,0.0002,2]
[364088591,1748994640561,-990.65,0.0002,2]
[364088593,1748994640573,-440.0,0.0002,2]
[364088595,1748994640587,-589.44,0.0002,2]
[364088597,1748994640597,-440.0,0.0002,2]
[364088600,1748994640607,-678.59,0.0002,2]
[364088602,1748994640618,-984.2,0.0002,2]
[364088603,1748994640631,-583.2,0.0002,2]
[364088606,1748994640645,-579.4,0.0002,2]
[364088608,1748994640657,-151.0,0.000201,3]
[364088609,1748994640667,-154.4265296,0.00020203,2]
[364088612,1748994640678,-613.26,0.00020273,2]
[364088614,1748994640688,-440.0,0.00020273,2]
[364088616,1748994640698,-626.89,0.00020273,2]
[364088618,1748994640707,-990.65,0.00020273,2]
[364088633,1748994640843,-440.0,0.00020273,2]
[364088635,1748994640853,-589.44,0.00020273,2]
[364088637,1748994640863,-440.0,0.00020273,2]
[364088639,1748994640872,-678.59,0.00020273,2]
[364088641,1748994640881,-984.2,0.00020273,2]
[364088643,1748994640890,-583.2,0.00020273,2]
[364088645,1748994640899,-579.4,0.00020273,2]
[364088647,1748994640909,-900.0,0.00020328,2]
[364088649,1748994640919,-500.0,0.00020547,2]
[364088651,1748994640928,-613.26,0.00020547,2]
[364088653,1748994640937,-440.0,0.00020547,2]
[364088655,1748994640947,-626.89,0.00020547,2]
[364088657,1748994640956,-990.65,0.00020547,2]
[364088659,1748994640966,-440.0,0.00020547,2]
[364088661,1748994640975,-589.44,0.00020547,2]
[364088663,1748994640985,-247.17908755,0.00020547,2]
[364088665,1748994640995,-678.59,0.00020547,2]
[364088667,1748994641004,-984.2,0.00020547,2]
[364088669,1748994641014,-583.2,0.00020547,2]
[364088671,1748994641023,-579.4,0.00020547,2]
[364088673,1748994641032,-1142.08,0.000206,2]
[364088675,1748994641042,-2417.84,0.000206,2]
[364088677,1748994641051,-3620.17415935,0.00020704,2]
[364088678,1748994641060,-613.26,0.00020821,2]
[364088681,1748994641070,-440.0,0.00020821,2]
[364088682,1748994641079,-626.89,0.00020821,2]
[364088685,1748994641089,-990.65,0.00020821,2]
[364088687,1748994641099,-440.0,0.00020821,2]
[364088688,1748994641108,-589.44,0.00020821,2]
[364088690,1748994641118,-678.59,0.00020821,2]
[364088693,1748994641127,-984.2,0.00020821,2]
[364088694,1748994641136,-583.2,0.00020821,2]
[364088696,1748994641146,-579.4,0.00020821,2]
[364088699,1748994641156,-151.0,0.000209,4]
[364088701,1748994641165,-500.0,0.00021095,3]
[364088703,1748994641174,-613.26,0.00021095,2]
[364088705,1748994641184,-440.0,0.00021095,2]
[364088707,1748994641193,-626.89,0.00021095,2]
[364088709,1748994641202,-990.65,0.00021095,2]
[364088710,1748994641212,-440.0,0.00021095,2]
[364088713,1748994641221,-589.44,0.00021095,2]
[364088715,1748994641230,-678.59,0.00021095,2]
[364088717,1748994641240,-984.2,0.00021095,2]
[364088719,1748994641249,-583.2,0.00021095,2]
[364088721,1748994641259,-579.4,0.00021095,2]
[364088722,1748994641268,-5000.0,0.00021133,2]
[364088724,1748994641277,-525.58676027,0.0002135,2]
[364088727,1748994641287,-500.0,0.0002135,2]
[364088729,1748994641297,-500.0,0.00021368,2]
[364088731,1748994641310,-500.0,0.00021368,2]
[364088733,1748994641330,-501.59296241,0.00021368,2]
[364088735,1748994641340,-500.0,0.00021368,2]
[364088737,1748994641349,-500.48097815,0.00021368,2]
[364088739,1748994641359,-500.0,0.00021368,2]
[364088741,1748994641369,-478.90915414,0.00021368,2]
[364088743,1748994641378,-501.15522276,0.00021368,2]
[364088745,1748994641389,-181.76766452,0.00021368,2]
[364088747,1748994641398,-500.0,0.00021368,2]
[364088749,1748994641408,-353.62005715,0.00021368,2]
[364088751,1748994641417,-500.0,0.00021368,2]
[364088753,1748994641427,-613.26,0.00021369,2]
[364088755,1748994641436,-440.0,0.00021369,2]
[364088757,1748994641446,-626.89,0.00021369,2]
[364088759,1748994641456,-990.65,0.00021369,2]
[364088761,1748994641465,-440.0,0.00021369,2]
[364088763,1748994641475,-589.44,0.00021369,2]
[364088765,1748994641485,-678.59,0.00021369,2]
[364088767,1748994641495,-984.2,0.00021369,2]
[364088769,1748994641504,-583.2,0.00021369,2]
[364088771,1748994641513,-579.4,0.00021369,2]
[364088773,1748994641522,-900.0,0.00021424,2]
[364088775,1748994641534,-823.0,0.00021454,2]
[364088777,1748994641543,-151.0,0.000216,3]
[364088779,1748994641555,-613.26,0.00021643,2]
[364088781,1748994641565,-440.0,0.00021643,2]
[364088783,1748994641575,-626.89,0.00021643,2]
[364088785,1748994641587,-990.65,0.00021643,2]
[364088788,1748994641597,-440.0,0.00021643,2]
[364088790,1748994641606,-589.44,0.00021643,2]
[364088792,1748994641616,-678.59,0.00021643,2]
[364088794,1748994641626,-984.2,0.00021643,2]
[364088796,1748994641637,-583.2,0.00021643,2]
[364088798,1748994641647,-579.4,0.00021643,2]
[364088800,1748994641657,-1680.0,0.00021776,2]
[364088802,1748994641667,-1000.0,0.00021916,2]
[364088804,1748994641677,-1000.0,0.00021916,2]
[364088806,1748994641686,-613.26,0.00021917,2]
[364088808,1748994641695,-470.59,0.00021917,2]
[364088810,1748994641706,-626.89,0.00021917,2]
[364088812,1748994641715,-990.65,0.00021917,2]
[364088814,1748994641724,-583.96,0.00021917,2]
[364088816,1748994641733,-589.44,0.00021917,2]
[364088818,1748994641746,-678.59,0.00021917,2]
[364088820,1748994641755,-984.2,0.00021917,2]
[364088822,1748994641765,-583.2,0.00021917,2]
[364088824,1748994641775,-579.4,0.00021917,2]
[364088826,1748994641787,-11421.03077928,0.00021948,2]
[364088829,1748994641802,-500.0,0.00021999,2]
[364088831,1748994641813,-500.0,0.00021999,2]
[364088833,1748994641823,-500.0,0.00021999,2]